Cogmind - Beta 15 @@@ ROGUE MODE // 2025.08.03 @ 21:01:35 Player: saltine Result: Destroyed by P-70 Sage with Tesla Rifle Performance ------------- Evolutions (6) 3000 Regions Visited (11) 2200 Robots Destroyed (49) 245 Value Destroyed (1898) 1898 Prototype IDs (36) 720 Alien Tech Used (0) 0 Bonus (3656) 3656 TOTAL SCORE: 11719 Bonus ------- High Alert Combat Kills 412 Follower Combat Kills 1636 Registered with UFD 300 Met Optimus in HQ 500 Met Warlord at Base 500 MAIN.C Attacked Warlord 500 Friendly Fire -192 Cogmind --------- Core Integrity 0/1150 Matter 287/300 Energy 83/100 System Corruption 30% Temperature Cool (0) Movement Core (50) Location -4/Armory Parts ------- > --- POWER (2) -------- (None) > --- PROPULSION (6) --- (None) > --- UTILITY (9) ------ (None) > --- WEAPON (2) ------- (None) > --- INVENTORY (5) ---- Light Quantum Reactor Experimental Reaction Control System Centrium Medium Armor Plating Amulet of Y3-NDR Enhanced Nova Cannon Peak State ------------ > --- POWER ------------ Light Angular Momentum Engine Cooled Fission Core > --- PROPULSION ------- Cooled Gravmag System Cooled Antigrav System Cooled Antigrav System Combat Linear Gravjet Combat Linear Gravjet Combat Linear Gravjet > --- UTILITY ---------- Advanced Cooling System Large Storage Unit Advanced Signal Interpreter Advanced Terrain Scanner Surveybot 17 Chip Advanced Melee Analysis Suite Experimental Core Analyzer Experimental Propulsion Shielding Ghost Barrier > --- WEAPON ----------- Enhanced Force Lance Thermal Lance > --- INVENTORY -------- Light Fission Core Light Quantum Reactor Improved Gyrokinetic Inverter Advanced Sensor Array Experimental Reaction Control System Improved Cloaking Device Centrium Medium Armor Plating Authchip [Device] A0-MCA's Component Scanner Amulet of Y3-NDR Long-range Proton Cannon Vortex Driver Enhanced Nova Cannon Fusion Bomb Launcher Enhanced Force Lance [Rating: 147] Favorites ----------- Power Ion Engine Engine Ion Engine Power Core Light Nuclear Core Propulsion Light Treads Treads Light Treads Wheel Armored Huge Wheel Hover Unit Cooled Gravmag System Utility Huge Storage Unit Device V3-11A's Pendant Storage Huge Storage Unit Processor Advanced Melee Analysis Suite Hackware Hacking Suite Protection Enhanced Scrap Shield Weapon Gauss Cannon Energy Gun Gatling Laser Energy Cannon Subdweller Beam Cannon Ballistic Gun Barrage Gun Ballistic Cannon Gauss Cannon Launcher Heavy Missile Launcher Special Weapon Mining Laser Piercing Weapon Enhanced Force Lance Build | -11 -10 -10 -7 -7 -5 -5 -5 -5 -4 -4 -4 ------- Run | Yrd Mat Sub Rec Scr Fac Upp Upp War Pro Fac Arm Slots Evolved 12 | . . . . . 10 . . . . 2 . Power 1 | . . . . . 1 . . . . . . Propulsion 4 | . . . . . 3 . . . . 1 . Utility 7 | . . . . . 6 . . . . 1 . Weapon . | . . . . . . . . . . . . Parts Attached 95 | 7 . 7 9 10 29 5 2 11 1 11 3 Power 12 | 1 . . 1 2 3 1 1 . . 2 1 Engine 6 | 1 . . . 2 2 . . . . 1 . Core 6 | . . . 1 . 1 1 1 . . 1 1 Reactor . | . . . . . . . . . . . . Propulsion 21 | 2 . . 3 1 7 3 . 3 . 2 . Treads 4 | 2 . . 2 . . . . . . . . Leg . | . . . . . . . . . . . . Wheel 4 | . . . 1 1 2 . . . . . . Hover 13 | . . . . . 5 3 . 3 . 2 . Flight . | . . . . . . . . . . . . Utility 33 | 2 . 2 2 3 14 1 1 3 . 5 . Device 11 | 1 . 1 . 2 4 . 1 . . 2 . Storage 4 | 1 . 1 . 1 1 . . . . . . Processor 5 | . . . . . 2 . . 1 . 2 . Hackware 3 | . . . 1 . 1 . . . . 1 . Protection 10 | . . . 1 . 6 1 . 2 . . . Artifact . | . . . . . . . . . . . . Weapon 29 | 2 . 5 3 4 5 . . 5 1 2 2 Energy Gun 3 | 1 . 1 . 1 . . . . . . . Energy Cannon 11 | . . 2 . 1 3 . . 2 1 1 1 Ballistic Gun 5 | 1 . 1 2 . 1 . . . . . . Ballistic Cannon 1 | . . . . 1 . . . . . . . Launcher 3 | . . . . 1 1 . . . . 1 . Special Weapon 4 | . . 1 1 . . . . 2 . . . Impact Weapon . | . . . . . . . . . . . . Slashing Weapon . | . . . . . . . . . . . . Piercing Weapon 2 | . . . . . . . . 1 . . 1 Special Melee Weapon . | . . . . . . . . . . . . Unidentified Prototypes 11 | . . 1 . . 1 2 1 4 . 2 . Parts Lost 20 | . . . 2 . . 1 . 1 . 7 9 Power 7 | . . . 1 . . 1 . . . 2 3 Propulsion 1 | . . . . . . . . . . 1 . Utility 8 | . . . . . . . . . . 2 6 Weapon 4 | . . . 1 . . . . 1 . 2 . Highest Loss Streak 5 | . . . 2 . . 1 . 1 . 3 5 To Critical Strikes 1 | . . . . . . . . . . 1 . Average Backups 21 | 4 7 20 22 25 27 13 14 14 14 14 14 Power 2 | . 1 2 3 1 1 . . . 1 1 1 Propulsion 3 | 1 2 4 6 3 2 2 2 1 2 1 . Utility 7 | . . 4 5 10 13 4 5 6 8 7 6 Weapon 6 | 1 2 7 6 7 7 4 4 3 3 4 4 Tool/Special . | . . . . . . . . . . . . Unused Backups 86 | . . 6 10 40 18 . . 4 . . 8 Power 11 | . . 1 3 3 2 . . 1 . . 1 Propulsion 15 | . . 2 2 6 2 . . 2 . . 1 Utility 42 | . . 2 2 24 9 . . 1 . . 4 Weapon 17 | . . 1 3 7 4 . . . . . 2 Tool/Special 1 | . . . . . 1 . . . . . . Average Slot Usage (%) 85 | . 100 99 91 73 73 88 88 92 88 93 93 Engine 8 | . 14 14 7 8 8 5 2 . . 2 3 Core 4 | . . . 6 5 1 5 8 11 11 7 5 Treads 9 | . 28 28 12 . . . . . . . . Wheel 7 | . . . 7 13 10 . . . . . . Hover 4 | . . . . . 5 28 29 29 29 30 29 Device 7 | . 14 13 5 1 10 16 17 16 10 11 10 Storage 11 | . 14 14 14 12 5 5 5 5 5 5 4 Processor 1 | . . . . . 2 11 11 11 11 16 20 Hackware 1 | . . . 3 2 2 . . . . 4 4 Protection 1 | . . . 4 . 14 5 5 5 11 4 2 Energy Gun 4 | . 14 2 . 9 . . . . . . . Energy Cannon 6 | . . 11 10 2 3 5 5 4 5 7 3 Ballistic Gun 3 | . 14 3 11 3 1 . . . . . . Ballistic Cannon 4 | . . . . 9 3 . . . . . . Special Weapon 4 | . . 10 5 2 . . . 3 . . . Peak Build Rating 147 | 7 7 17 28 37 92 102 100 120 126 143 147 Average Rating 36 | 6 7 14 22 31 70 94 97 98 115 134 136 On Entrance 62 | . 7 7 16 27 37 90 95 99 118 112 138 Naked Turns 17 | . . . . . . . . . . . 17 Heaviest Build 253 | 15 15 102 104 225 253 57 58 63 63 72 70 Greatest Support 96 | 40 40 40 40 28 66 60 60 77 66 96 79 Greatest Overweight (x) 8 | . . 2 3 8 4 . . . . . . Average Overweight (x) 2 | . . 1 2 4 1 . . . . . . Largest Inventory Capacity 35 | 8 8 25 25 35 35 15 15 15 15 15 15 Average Capacity 24 | 7 8 24 25 29 29 15 15 15 15 15 14 Most Carried 35 | 5 8 25 25 35 35 15 15 15 15 15 15 Average Carried 23 | 4 7 22 24 27 28 14 14 14 14 14 14 Final Capacity 35 | 8 8 25 25 35 35 15 15 15 15 15 5 Final Carried 35 | 5 8 25 25 35 35 15 15 15 15 15 5 Class Distribution -------------------- 48% | Commander-Mutant 38% | Mutant 9% | Scavenger-Mutant Dominant Class ---------------- Mutant | -10/Materials Mutant | -10/Subcaves Commander-Mutant | -7/Recycling Commander-Mutant | -7/Scraptown Hauler-Mutant | -5/Factory Mutant | -5/Upper Caves Scavenger-Mutant | -5/Upper Caves Scavenger-Mutant | -5/Warlord Scavenger-Mutant | -4/Proximity Caves Scavenger-Mutant | -4/Factory Scavenger-Mutant | -4/Armory Resources | -11 -10 -10 -7 -7 -5 -5 -5 -5 -4 -4 -4 ----------- Run | Yrd Mat Sub Rec Scr Fac Upp Upp War Pro Fac Arm Matter Collected 3459 | 286 . 170 321 1330 529 65 30 174 82 392 80 Remotely . | . . . . . . . . . . . . Salvage Created 1999 | 46 . 85 540 . 420 95 . . 146 609 58 Parts 100 | 7 . 4 25 . 24 4 . . 6 29 1 Haulers Intercepted 1 | . . . . . 1 . . . . . . Recyclers Shooed 5 | 1 . . 3 . 1 . . . . . . Parts Field Recycled 30 | . . . . 30 . . . . . . . Retrieved Matter 146 | . . . . 146 . . . . . . . Parts Self-Destructed 30 | . . 19 . . . 4 2 . 5 . . Prevented 32 | . . . . . . . 17 . 15 . . Kills | -11 -10 -10 -7 -7 -5 -5 -5 -5 -4 -4 -4 ------- Run | Yrd Mat Sub Rec Scr Fac Upp Upp War Pro Fac Arm Combat Hostiles Destroyed 33 | . . 1 4 . 3 4 . . 3 17 1 Melee 1 | . . . . . . . . . . . 1 Guns 3 | . . . 2 . 1 . . . . . . Cannons 14 | . . 1 2 . 2 4 . . . 5 . AOE 13 | . . . . . . . . . 2 11 . Classes Destroyed 14 | 1 . 3 5 . 3 . . . . 2 . Worker 2 | . . . . . 1 . . . . 1 . Builder 5 | . . . . . . . . . . 5 . Tunneler 3 | 3 . . . . . . . . . . . Hauler 1 | . . . . . 1 . . . . . . Recycler 3 | . . . 2 . 1 . . . . . . Turret 1 | . . 1 . . . . . . . . . Swarmer 11 | . . 1 . . . 4 . . 2 4 . Grunt 7 | . . . 2 . . . . . . 5 . Brawler 1 | . . . 1 . . . . . . . . Duelist 2 | . . . 1 . . . . . . 1 . Sentry 4 | . . . 1 . . . . . 1 2 . Hunter 1 | . . . . . . . . . . 1 . Programmer 8 | . . . . . 3 . . . . 4 1 Artisan 2 | . . 2 . . . . . . . . . Best Kill Streak 17 | 2 . 2 2 . 2 4 . . 2 17 1 Combat Bots Only 8 | . . 1 2 . 2 4 . . 2 8 1 Max Kills in Single Turn 3 | 1 . 1 1 . 1 1 . . 2 3 1 Gunslinging . | . . . . . . . . . . . . Exploded 3 | . . . . . . . . . 2 3 . Melee 1 | . . . . . . . . . . . 1 Uniques/NPCs Destroyed . | . . . . . . . . . . . . Combat | -11 -10 -10 -7 -7 -5 -5 -5 -5 -4 -4 -4 -------- Run | Yrd Mat Sub Rec Scr Fac Upp Upp War Pro Fac Arm Hostile Shots Fired 446 | . . 2 71 10 33 50 . 20 22 116 122 Missed 134 | . . . 17 . 6 15 . 7 5 46 38 Hits 312 | . . 2 54 10 27 35 . 13 17 70 84 Melee 5 | . . . 4 . . . . . . . 1 Projectile 307 | . . 2 50 10 27 35 . 13 17 70 83 AOE 1 | . . . . . . . . . . . 1 Critical Strikes 9 | . . . 1 1 1 . . 1 . 4 1 Actively Blocked 1 | . . . . . . . . 1 . . . Part Disruptions 1 | . . . . . . . . . . . 1 Damage Taken 6077 | . . 123 613 85 587 522 . 244 389 1669 1845 Core 1492 | . . 65 119 29 25 43 . . 50 140 1021 Absorbed by Shields . | . . . . . . . . . . . . Redirected to Shielding 154 | . . . . . . . . 28 35 . 91 Regen/Repaired (Parts) 71 | . . . . . . . . 71 . . . Core Remaining (%) 67 | 100 . . . 14 . . . . 88 . . Volleys Fired 224 | 9 2 42 28 11 37 20 . 14 11 44 6 Largest 2 | 2 2 2 2 2 2 1 . 1 1 2 1 Hottest 196 | 70 70 120 160 105 131 40 . 98 98 196 120 Shots Fired 279 | 18 4 47 49 13 44 20 . 14 11 52 7 Gun 59 | 18 4 7 18 . 12 . . . . . . Cannon 162 | . . 3 25 13 32 20 . 10 10 42 7 Launcher 11 | . . . . . . . . . 1 10 . Special 47 | . . 37 6 . . . . 4 . . . Kinetic 51 | 9 2 4 18 2 16 . . . . . . Thermal 191 | 9 2 40 31 11 28 20 . 8 5 35 2 Explosive 10 | . . . . . . . . . . 10 . Electromagnetic 23 | . . 3 . . . . . 2 6 7 5 Robot Hit Streak 8 | 4 2 6 8 . 7 2 . 3 2 5 6 Robot Miss Streak 6 | 4 1 2 5 6 1 3 . 1 1 3 3 Penetration Max . | . . . . . . . . . . . . Secondary Targets 1 | . . . 1 . . . . . . . . Max Gunslinging Chain 1 | . . . 1 . . . . . . . . Shots Hit Robots 118 | 10 2 6 31 . 23 6 . 5 4 24 7 Core Hits 80 | 3 . 4 18 . 9 3 . 1 4 36 2 Critical Kills 4 | . . 1 . . 2 . . . . 1 . Critical Parts Destroyed 1 | . . . . . 1 . . . . . . Critical Strikes 5 | . . 1 . . 3 . . . . 1 . Meltdown 3 | . . 1 . . 1 . . . . 1 . Destroy 2 | . . . . . 2 . . . . . . Melee Attacks 19 | . . . . . . . . 1 . . 18 Thermal 8 | . . . . . . . . 1 . . 7 Impact . | . . . . . . . . . . . . Slashing . | . . . . . . . . . . . . Piercing 11 | . . . . . . . . . . . 11 Sneak Attacks . | . . . . . . . . . . . . Combat Hostiles . | . . . . . . . . . . . . Follow-up Attacks 1 | . . . . . . . . . . . 1 Damage Inflicted 6153 | 145 28 176 819 . 664 291 . 117 173 3110 630 Guns 446 | 128 28 38 199 . 53 . . . . . . Cannons 2633 | . . 61 547 . 611 291 . 117 87 888 31 Explosions 2385 | . . 77 . . . . . . 86 2222 . Melee 470 | . . . . . . . . . . . 470 Ramming 179 | 17 . . 33 . . . . . . . 129 Kinetic 426 | 54 15 11 199 . 147 . . . . . . Thermal 2778 | 74 13 138 587 . 517 291 . 117 . 707 334 Explosive 2222 | . . . . . . . . . . 2222 . Electromagnetic 412 | . . 27 . . . . . . 173 181 31 Impact . | . . . . . . . . . . . . Slashing . | . . . . . . . . . . . . Piercing 136 | . . . . . . . . . . . 136 Highest Corruption 30 | . . . . 1 1 . . . . 4 30 Average Corruption 2 | . . . . 1 1 . . . . 1 5 Corruption Purged 1 | . . . . . 1 . . . . . . Corruption Blocked . | . . . . . . . . . . . . Effects 25 | . . . . . 6 . . . . 6 13 Message Errors 4 | . . . . . 1 . . . . 1 2 Matter Fused 5 | . . . . . 2 . . . . 1 2 Heat Flow Errors 2 | . . . . . . . . . . . 2 Energy Discharges 2 | . . . . . . . . . . 1 1 Parts Rejected 1 | . . . . . . . . . . . 1 Data Loss (minor) 3 | . . . . . 1 . . . . 1 1 Data Loss (major) 2 | . . . . . 1 . . . . 1 . Misfires 1 | . . . . . . . . . . . 1 Misdirections 3 | . . . . . . . . . . . 3 Weapon Failures 2 | . . . . . 1 . . . . 1 . Overload Shots . | . . . . . . . . . . . . Overflow Damage 220 | . . . . . 49 32 . . . 59 80 Projectiles 111 | . . . . . 49 32 . . . 30 . Explosions 29 | . . . . . . . . . . 29 . Melee 80 | . . . . . . . . . . . 80 Knockbacks 1 | . . . 1 . . . . . . . . Impact 1 | . . . 1 . . . . . . . . Kinetic . | . . . . . . . . . . . . Secondary . | . . . . . . . . . . . . Self-Inflicted Damage 165 | . . 24 . . . . . . 10 19 112 Shots 4 | . . 1 . . . . . . 1 2 . Rammed 11 | 5 . . 3 . . . . . . . 3 Targets Rammed 11 | 5 . . 3 . . . . . . . 3 Kicked . | . . . . . . . . . . . . Crushed . | . . . . . . . . . . . . Highest Temperature 396 | 45 18 28 396 112 144 3 . 80 2 250 358 Average Temperature 74 | 18 10 17 151 36 48 3 . 46 2 44 141 Received Heat Transfer 555 | . . 18 204 . 90 . . 9 63 117 54 Effects 5 | . . . 3 . . . . . . . 2 Shutdowns 1 | . . . . . . . . . . . 1 Interference 2 | . . . 2 . . . . . . . . Matter Decay 2 | . . . 1 . . . . . . . 1 Siege Activations . | . . . . . . . . . . . . Martial Activations . | . . . . . . . . . . . . Shielding Activations . | . . . . . . . . . . . . Robots Disrupted . | . . . . . . . . . . . . Combat Hostiles . | . . . . . . . . . . . . Robots Corrupted 2 | . . . . . . . . . 1 1 . Combat Hostiles 2 | . . . . . . . . . 1 1 . Parts Fried 2 | . . . . . . . . . . 2 . Impact Corruptions . | . . . . . . . . . . . . Robots Melted 3 | . . 1 . . 1 . . . . 1 . Combat Hostiles . | . . . . . . . . . . . . Parts Melted 10 | 2 . . . . 3 . . . . 3 2 Heat Transferred 3260 | 222 37 174 835 . 400 . . 162 . 950 480 Parts Sabotaged . | . . . . . . . . . . . . Parts Stolen . | . . . . . . . . . . . . Parts Stripped . | . . . . . . . . . . . . Power Chain Reactions 1 | . . 1 . . . . . . . . . Alert | -11 -10 -10 -7 -7 -5 -5 -5 -5 -4 -4 -4 ------- Run | Yrd Mat Sub Rec Scr Fac Upp Upp War Pro Fac Arm Maximum Alert Level 3 | . . . . . . . . . . 3 2 Low Security (%) 86 | 100 100 . 100 . 100 . . . . 34 . Level 1 6 | . . . . . . . . . . 21 61 Level 2 3 | . . . . . . . . . . 7 38 Level 3 3 | . . . . . . . . . . 37 . Level 4 . | . . . . . . . . . . . . Level 5 . | . . . . . . . . . . . . High Security . | . . . . . . . . . . . . Max Security . | . . . . . . . . . . . . Peak Influence 884 | 5 . . 101 . 55 . . . . 884 542 Initial 424 | . . . . . . . . . . 135 424 Average 82 | . . . 19 . 19 . . . . 446 399 Influence Increases 3349 | 15 . 99 403 . 454 120 37 157 318 1181 565 Destroy 0b10 Robot/C 1440 | . . 80 160 . 220 80 20 40 220 560 60 Destroy 0b10 Robot/NC 105 | 15 . . 30 . 20 . . . . 40 . Destroy Leader 224 | . . . . . 62 10 10 . . 132 10 Allied During Kill 272 | . . 19 47 . 78 . 7 12 53 42 14 Successful Hack 93 | . . . 42 . 23 . . . . 28 . Select Force Hacks 120 | . . . 120 . . . . . . . . Disable Machine 90 | . . . . . . . . . . 30 60 Destroy Structure 210 | . . . 4 . 36 . . . . 154 16 Partial Spotted 15 | . . . . . . . . . . 15 . Lose Combat Pursuer 780 | . . . . . 15 30 . 105 45 180 405 Influence Decreases 2938 | 15 . 99 403 . 453 116 25 173 104 528 1022 Entered New Map 545 | . . . . . . 1 2 17 1 80 444 Time Decay 1596 | 15 . 72 369 . 347 105 23 86 103 238 238 Search Patrol Dispatched 150 | . . . . . . . . . . . 150 Lost Part 191 | . . . 11 . . 10 . 10 . 70 90 Lost Ally 456 | . . 27 23 . 106 . . 60 . 140 100 Squads Dispatched 14 | . . . . . 4 . . . . 5 5 Investigation . | . . . . . . . . . . . . Extermination 7 | . . . . . 3 . . . . 1 3 Reinforcement 6 | . . . . . 1 . . . . 3 2 Assault 1 | . . . . . . . . . . 1 . Garrison . | . . . . . . . . . . . . Intercept . | . . . . . . . . . . . . Searches Triggered 1 | . . . . . . . . . . . 1 Construction Impeded 3 | . . . . . 1 . . . . 2 . Haulers Reinforced . | . . . . . . . . . . . . Active Scanning Responses . | . . . . . . . . . . . . Cargo Convoy Interrupts . | . . . . . . . . . . . . Stealth | -11 -10 -10 -7 -7 -5 -5 -5 -5 -4 -4 -4 --------- Run | Yrd Mat Sub Rec Scr Fac Upp Upp War Pro Fac Arm Distress Signals 10 | . . . 1 . . . . 1 . 5 3 Communications Jammed . | . . . . . . . . . . . . Distress Signals . | . . . . . . . . . . . . Times Spotted 188 | . . 8 9 3 12 6 . 50 11 50 39 Peak Tracking Total 19 | . . 3 4 3 3 4 . 12 7 17 19 Tactical Retreats 21 | . . . . . 1 2 . 3 1 4 10 Traps | -11 -10 -10 -7 -7 -5 -5 -5 -5 -4 -4 -4 ------- Run | Yrd Mat Sub Rec Scr Fac Upp Upp War Pro Fac Arm Traps Triggered 6 | . . 1 . . . . . . . 3 2 Indirectly . | . . . . . . . . . . . . Trap Hack Attempts . | . . . . . . . . . . . . Triggered . | . . . . . . . . . . . . Disarmed . | . . . . . . . . . . . . Reprogrammed . | . . . . . . . . . . . . Reused . | . . . . . . . . . . . . Traps Extracted . | . . . . . . . . . . . . Installed . | . . . . . . . . . . . . Triggered . | . . . . . . . . . . . . Machines | -11 -10 -10 -7 -7 -5 -5 -5 -5 -4 -4 -4 ---------- Run | Yrd Mat Sub Rec Scr Fac Upp Upp War Pro Fac Arm Machines Disabled 18 | . . 2 . 6 . . . 1 3 2 4 Max in Single Turn 1 | . . 1 . 1 . . . 1 . 1 1 Machines Repaired . | . . . . . . . . . . . . Machines Dismantled . | . . . . . . . . . . . . Machines Sabotaged . | . . . . . . . . . . . . Overloaded Fab Kills . | . . . . . . . . . . . . Hacking | -11 -10 -10 -7 -7 -5 -5 -5 -5 -4 -4 -4 --------- Run | Yrd Mat Sub Rec Scr Fac Upp Upp War Pro Fac Arm Machines Accessed 35 | . 1 2 11 6 7 1 1 1 . 3 2 Terminals 17 | . 1 . 6 . 6 . 1 . . 2 1 Fabricators 2 | . . . . . 1 . . . . 1 . Repair Stations . | . . . . . . . . . . . . Recycling Units 6 | . . . 5 . . . . . . . 1 Scanalyzers . | . . . . . . . . . . . . Garrison Access . | . . . . . . . . . . . . Total Hacks 105 | . 4 6 26 34 19 1 1 1 . 11 2 Successful 65 | . 2 6 13 34 4 1 1 1 . 3 . Failed 39 | . 1 . 13 . 15 . . . . 8 2 Catastrophic 15 | . . . 2 . 7 . . . . 4 2 Database Lockouts 1 | . 1 . . . . . . . . . . Manual 46 | . 3 . 24 1 12 . . . . 6 . Terminals 50 | . 4 . 18 . 16 . 1 . . 10 1 Fabricators 4 | . . . . . 3 . . . . 1 . Repair Stations . | . . . . . . . . . . . . Recycling Units 9 | . . . 8 . . . . . . . 1 Scanalyzers . | . . . . . . . . . . . . Garrison Access . | . . . . . . . . . . . . Terminal Hacks 51 | . 2 6 3 34 2 1 1 1 . 1 . Record 39 | . . 5 . 33 . . 1 . . . . Part Schematic 4 | . . . 3 . 1 . . . . . . Robot Analysis 1 | . 1 . . . . . . . . . . Open Door 2 | . . . . . . 1 . 1 . . . Locate Traps 1 | . . . . . 1 . . . . . . Hauler Manifests 1 | . 1 . . . . . . . . . . Zone Layout 1 | . . . . . . . . . . 1 . Proto ID Catalog 2 | . . 1 . 1 . . . . . . . Fabricator Hacks 2 | . . . . . 1 . . . . 1 . Network Status 2 | . . . . . 1 . . . . 1 . Repair Station Hacks . | . . . . . . . . . . . . Recycling Unit Hacks . | . . . . . . . . . . . . Scanalyzer . | . . . . . . . . . . . . Garrison Access Hacks . | . . . . . . . . . . . . Unauthorized Hacks 12 | . . . 10 . 1 . . . . 1 . Terminals 7 | . . . 6 . . . . . . 1 . Botnet 4 | . . . 3 . . . . . . 1 . Skim 3 | . . . 3 . . . . . . . . Fabricators 1 | . . . . . 1 . . . . . . Haulers 1 | . . . . . 1 . . . . . . Repair Stations . | . . . . . . . . . . . . Recycling Units 4 | . . . 4 . . . . . . . . Tunnel 4 | . . . 4 . . . . . . . . Scanalyzers . | . . . . . . . . . . . . Garrison Access . | . . . . . . . . . . . . Data Cores Recovered . | . . . . . . . . . . . . Used . | . . . . . . . . . . . . Hacking Detections 18 | . 1 . 7 . 6 . . . . 2 2 Full Trace Events 1 | . . . 1 . . . . . . . . Feedback Events . | . . . . . . . . . . . . Feedback Blocked . | . . . . . . . . . . . . Robot Schematics Acquired . | . . . . . . . . . . . . Robots Built . | . . . . . . . . . . . . Authchips . | . . . . . . . . . . . . Time . | . . . . . . . . . . . . Total Robot Build Rating . | . . . . . . . . . . . . Part Schematics Acquired 4 | . . . 3 . 1 . . . . . . Parts Built . | . . . . . . . . . . . . Authchips . | . . . . . . . . . . . . Time . | . . . . . . . . . . . . Total Part Build Rating . | . . . . . . . . . . . . Parts Repaired . | . . . . . . . . . . . . Time . | . . . . . . . . . . . . Parts Recycled . | . . . . . . . . . . . . Recycled Matter . | . . . . . . . . . . . . Retrieved Matter . | . . . . . . . . . . . . Retrieved Components . | . . . . . . . . . . . . Parts Scanalyzed . | . . . . . . . . . . . . Part Schematics Acquired . | . . . . . . . . . . . . Parts Damaged . | . . . . . . . . . . . . Bothacking | -11 -10 -10 -7 -7 -5 -5 -5 -5 -4 -4 -4 ------------ Run | Yrd Mat Sub Rec Scr Fac Upp Upp War Pro Fac Arm Used RIF Installer . | . . . . . . . . . . . . Robots Hacked 2 | . . . . . . . . 2 . . . Non-combat . | . . . . . . . . . . . . Combat 2 | . . . . . . . . 2 . . . Robot Hacks Applied 2 | . . . . . . . . 2 . . . parse_system 2 | . . . . . . . . 2 . . . Relay Couplers Released 3 | . . . . . . . . . . 3 . Programmers 3 | . . . . . . . . . . 3 . Fabnet Peak Effective % . | . . . . . . . . . . . . Robots Rewired 29 | . . . 19 . . . . 5 . . 5 Allies Hacked 2 | . . . . . 2 . . . . . . Hacks Repelled . | . . . . . . . . . . . . Allies | -11 -10 -10 -7 -7 -5 -5 -5 -5 -4 -4 -4 -------- Run | Yrd Mat Sub Rec Scr Fac Upp Upp War Pro Fac Arm Total Allies 67 | . . 13 19 5 . . 6 5 4 10 5 Largest Group 20 | . . 7 16 20 10 . 4 9 4 4 3 Highest-Rated Group 567 | . . 133 357 563 284 . 324 567 324 316 168 Highest-Rated Ally 81 | . . 19 34 47 47 . 81 81 81 81 56 Total Orders 42 | . . . 18 20 . . . 4 . . . STAY 7 | . . . 1 5 . . . 1 . . . FOLLOW 24 | . . . 11 11 . . . 2 . . . GUARD 1 | . . . . . . . . 1 . . . DROP 2 | . . . . 2 . . . . . . . PICKUP 5 | . . . 5 . . . . . . . . COLLECT 3 | . . . 1 2 . . . . . . . Ally Attacks 315 | . . 35 39 74 40 . 13 12 23 54 25 Total Damage 9520 | . . 515 669 1618 1310 . 270 361 1181 2594 1002 Kills 67 | . . 6 6 14 9 . 1 2 9 18 2 Allies Corrupted 1 | . . . 1 . . . . . . . . Allies Melted 6 | . . . . 4 . . . 1 . 1 . Intel | -11 -10 -10 -7 -7 -5 -5 -5 -5 -4 -4 -4 ------- Run | Yrd Mat Sub Rec Scr Fac Upp Upp War Pro Fac Arm Active Infowar (turns) 5727 | 891 184 720 . 6 997 365 190 1333 287 324 430 Optics 2130 | . . . . . 296 365 190 1279 . . . Sensors 501 | . . . . . . . . . . 72 429 Terrain 206 | . . . . . . . . . . 47 159 Structural 1702 | . . . . . 294 365 190 853 . . . Seismic 5158 | 891 184 720 . 6 997 319 190 1330 287 234 . Robot Analysis Total 1 | . 1 . . . . . . . . . . Derelict Logs Recovered 5 | . . 1 . 3 . . . . 1 . . Drone Launches . | . . . . . . . . . . . . Drone Recoveries . | . . . . . . . . . . . . Exploration | -11 -10 -10 -7 -7 -5 -5 -5 -5 -4 -4 -4 ------------- Run | Yrd Mat Sub Rec Scr Fac Upp Upp War Pro Fac Arm Turns Passed 27553 | 1041 184 7771 2760 11229 1070 365 190 1342 585 504 512 Spaces Moved 15193 | 201 66 2223 1104 6172 776 546 273 1640 581 798 813 Core 111 | 5 . . . 104 . . . . . . 2 Treads 2833 | 196 66 2223 348 . . . . . . . . Legs . | . . . . . . . . . . . . Wheels 7259 | . . . 756 6068 435 . . . . . . Hover 4990 | . . . . . 341 546 273 1640 581 798 811 Flight . | . . . . . . . . . . . . Fastest Speed 23 | 50 160 160 145 50 59 54 54 35 46 23 37 Average Speed 153 | 157 160 317 200 170 110 54 54 53 46 42 38 Slowest Speed 320 | 160 160 320 320 220 160 59 54 54 46 46 50 Overloaded Moves 23 | . . . . . . . . 17 . 6 . Propulsion Burnouts . | . . . . . . . . . . . . Robots Hopped . | . . . . . . . . . . . . Potential Cave-ins . | . . . . . . . . . . . . Cave-ins Triggered . | . . . . . . . . . . . . Exploration Rate (%) 56 | 13 14 97 99 92 30 66 49 89 68 24 38 Regions Visited 11 Branch Regions 8 Pre-discovered Areas 11 | . . 1 4 5 . . . . 1 . . Known Exits Taken 5 | . . . . 1 1 1 . . 1 1 . Unknown Exits Taken 6 | 1 1 1 1 . . . 1 1 . . . Scrap Searched 25 | . . 11 . 10 . 2 . . 2 . . Spaces Dug 50 | . . 4 . 2 11 3 . 3 2 18 7 Terrain Destroyed 144 | . . 10 4 8 16 14 . 4 5 75 8 Melee 6 | . . . . . . . . . . . 6 Projectile 75 | . . 8 4 8 16 14 . 4 5 14 2 AOE 63 | . . 2 . . . . . . . 61 . Terrain Rammed 16 | . . . . . . . . . . . 16 Walls Destroyed . | . . . . . . . . . . . . Machines Disabled . | . . . . . . . . . . . . Actions | -11 -10 -10 -7 -7 -5 -5 -5 -5 -4 -4 -4 --------- Run | Yrd Mat Sub Rec Scr Fac Upp Upp War Pro Fac Arm Total 19096 | 902 141 2820 1606 6898 952 600 315 2095 887 903 977 Wait 2764 | 676 71 502 306 405 29 21 31 375 287 18 43 Move 15182 | 200 65 2222 1103 6171 775 545 272 1639 580 797 813 Hop . | . . . . . . . . . . . . Pick Up 276 | 5 3 25 18 169 22 2 5 13 . 9 5 Fast Attach 41 | 7 . 1 2 6 10 1 . 7 . 5 2 Attach 52 | . . 1 4 5 16 3 . 5 3 13 2 Detach 26 | . . 1 2 4 7 2 . 3 3 4 . Swap 67 | . . 14 6 4 15 3 3 6 3 8 5 Drop 222 | . . 12 18 123 39 3 4 16 . 5 2 Fire 224 | 9 2 42 28 11 37 20 . 14 11 44 6 Melee 17 | . . . . . . . . 1 . . 16 Ram 19 | . . . . . . . . . . . 19 Kick . | . . . . . . . . . . . . Crush 8 | 5 . . 3 . . . . . . . . Escape Stasis . | . . . . . . . . . . . . Rewire 196 | . . . 116 . . . . 16 . . 64 Trap . | . . . . . . . . . . . . Miscellaneous 2 | . . . . . 2 . . . . . . Route ------- -11/Scrapyard -10/Materials -10/Subcaves (discovered 3 exits: [*Mat x2] / *Rec) -7/Recycling (discovered 2 exits: *Fac / *Scr) -7/Scraptown (discovered 2 exits: *Fac x2) -5/Factory (discovered 4 exits: Fac x2 / *Upp x2) -5/Upper Caves -5/Upper Caves -5/Warlord -4/Proximity Caves -4/Factory (discovered 2 exits: [*Res] / *Arm) -4/Armory History --------- Turn | Location | Event 6 | -11/Scrapyard | Discovered new exit (range 15) 1042 | -11/Scrapyard | Entered Materials 1043 | -10/Materials | Build established: Mutant 1088 | -10/Materials | Central database locked down 1202 | -10/Materials | Discovered new exit (range 5) 1226 | -10/Materials | Entered Subcaves 1227 | -10/Subcaves | Approached by a straggling Scientist 1274 | -10/Subcaves | Visited triangular shrine 1285 | -10/Subcaves | Found Prototype Device 1285 | -10/Subcaves | Identified V3-11A's Pendant 1290 | -10/Subcaves | Befriended Subdweller 1410 | -10/Subcaves | Shifting Twisted Machinery released Sub. Power Source 1470 | -10/Subcaves | Discovered new exit (range 12) 1483 | -10/Subcaves | Shifting Twisted Machinery released Battle Rifle 1888 | -10/Subcaves | Visited Clippyterm 1897 | -10/Subcaves | Learned location of Extension (-6) 1897 | -10/Subcaves | Learned Factory fabricator intel 1963 | -10/Subcaves | Befriended Subdweller 2197 | -10/Subcaves | Visited 4L-MR0's lab 2234 | -10/Subcaves | Found Prototype Energy Cannon 2244 | -10/Subcaves | Identified Powered Cannon 2394 | -10/Subcaves | Shifting Twisted Machinery released Battle Rifle 2423 | -10/Subcaves | Befriended Subdweller 2428 | -10/Subcaves | Befriended Subdweller 2526 | -10/Subcaves | Shifting Twisted Machinery released Scrap Shield 2613 | -10/Subcaves | Befriended Subdweller 2613 | -10/Subcaves | Befriended Subdweller 3153 | -10/Subcaves | Ambushed by angry Subdweller bent on revenge 3153 | -10/Subcaves | Befriended Subdweller 3231 | -10/Subcaves | Disturbed a concealed Subdweller 3233 | -10/Subcaves | Befriended Subdweller 3333 | -10/Subcaves | Befriended Subdweller 3695 | -10/Subcaves | Disturbed a concealed Subdweller 3698 | -10/Subcaves | Befriended Subdweller 3913 | -10/Subcaves | Befriended Subdweller 4115 | -10/Subcaves | Discovered new exit (range 16) 4146 | -10/Subcaves | Lost 3 allies 4478 | -10/Subcaves | A swath of the cavern ceiling suddenly collapsed 4853 | -10/Subcaves | Discovered new exit (range 10) 5101 | -10/Subcaves | Befriended Subdweller 6101 | -10/Subcaves | Ambushed by Subdweller buried in earth 6106 | -10/Subcaves | Befriended Subdweller 7439 | -10/Subcaves | Shifting Twisted Machinery released Sub. Beam Cannon 7682 | -10/Subcaves | Shifting Twisted Machinery released Flamer 8997 | -10/Subcaves | Entered Recycling 8997 | -7/Recycling | Accompanied by 4 allies 9704 | -7/Recycling | Lost 3 allies 10277 | -7/Recycling | Discovered new exit (range 12) 10360 | -7/Recycling | Core integrity fell below 50% 10395 | -7/Recycling | Lost 3 allies 10508 | -7/Recycling | Build established: Commander-Mutant 11588 | -7/Recycling | Scanned before Scraplab entrance 11608 | -7/Recycling | Entered Scraplab 11620 | -7/Recycling | Discovered new exit (range 3) 11757 | -7/Recycling | Entered Scraptown 11757 | -7/Scraptown | Accompanied by 15 allies 11779 | -7/Scraptown | Heard Great Nut preacher, LISTEN AND RECITE! 11863 | -7/Scraptown | Delivered V3-11A's Pendant to T0-NE2 in exchange for information 11987 | -7/Scraptown | Discovered new exit (range 11) 12059 | -7/Scraptown | Scanned Subdweller tech in exchange for log data 12062 | -7/Scraptown | Learned location of Zion (-6) 12063 | -7/Scraptown | Learned 8 Research zone layouts 12323 | -7/Scraptown | Visited Spacefarers 12356 | -7/Scraptown | Visited Junk Repository 12581 | -7/Scraptown | Visited Bundlers 12671 | -7/Scraptown | Visited UFD Registry 12691 | -7/Scraptown | Visited Junk Repository 12729 | -7/Scraptown | Visited IN-MT5's Study 12749 | -7/Scraptown | Visited Red Mages 12765 | -7/Scraptown | Visited The Evicted 12821 | -7/Scraptown | Registered with UFD as "Deathrider" 12866 | -7/Scraptown | Visited Science Guys 12918 | -7/Scraptown | Visited LU-1G1's Boring Crew 12942 | -7/Scraptown | Visited Scrapoid Pod Storage 12966 | -7/Scraptown | Visited Cartography Club 12982 | -7/Scraptown | Visited Science Testing Area 13004 | -7/Scraptown | Visited DA-N13 Charitable Foundation 13019 | -7/Scraptown | Found DCF Scrap (25 items) 13045 | -7/Scraptown | Visited A0-MCA Data Center 13053 | -7/Scraptown | Given a B- rating by A0-MCA 13057 | -7/Scraptown | Found A0-MCA's Component Scanner 13081 | -7/Scraptown | Visited Chapter 10 13107 | -7/Scraptown | Visited Scrap Suit Storage 13127 | -7/Scraptown | Visited Curators Association 13235 | -7/Scraptown | Delivered Scrap Shield to a Scientist 13623 | -7/Scraptown | Found Surveybot 17 Chip 13643 | -7/Scraptown | Learned location of Upper Caves (-4) 13643 | -7/Scraptown | Learned location of Archives (-6) 13643 | -7/Scraptown | Learned 16 Materials zone layouts 13643 | -7/Scraptown | Learned 16 Factory zone layouts 13643 | -7/Scraptown | Learned 4 Recycling zone layouts 13643 | -7/Scraptown | Learned 8 Lower Caves zone layouts 13643 | -7/Scraptown | Learned 16 Upper Caves zone layouts 13643 | -7/Scraptown | Learned 16 Proximity Caves zone layouts 13643 | -7/Scraptown | Learned 4 Armory zone layouts 13643 | -7/Scraptown | Learned location of 3 exits from Factory 13643 | -7/Scraptown | Learned location of 2 exits from Lower Caves 13643 | -7/Scraptown | Learned location of 1 exit from Proximity Caves 13643 | -7/Scraptown | Identified exit to Factory 13647 | -7/Scraptown | Found Deep Structural Scanner 17737 | -7/Scraptown | Found Scrapoid Pod 17907 | -7/Scraptown | Scrapoid Pod released 07S05-D (x5) 22492 | -7/Scraptown | Met Optimus 22492 | -7/Scraptown | Accepted into 0bPrime 22820 | -7/Scraptown | Civil war broke out across Scraptown 22828 | -7/Scraptown | Found Thermal Lance 22880 | -7/Scraptown | Lost 4 allies 22899 | -7/Scraptown | Core integrity fell below 20% 22948 | -7/Scraptown | Lost 6 allies 22986 | -7/Scraptown | Entered Factory 22986 | -5/Factory | Accompanied by 10 allies 22986 | -5/Factory | Evolved 10 slots: Power x1, Propulsion x3, Utility x6 22987 | -5/Factory | Identified exit to Factory 22987 | -5/Factory | Identified exit to Upper Caves 22989 | -5/Factory | Loaded intel: 6 fabricator locations 23010 | -5/Factory | Lost 3 allies 23262 | -5/Factory | Build established: Hauler-Mutant 23323 | -5/Factory | P-70 Sage assimilated allied 07S04-D 23708 | -5/Factory | Found Prototype Launcher 23708 | -5/Factory | Identified Tesla Bomb Launcher 23715 | -5/Factory | Found Tesla Bomb Launcher 23763 | -5/Factory | Attached Powered Cannon, gained temporary slot: Power 24049 | -5/Factory | Spotted B-75 Beast 24056 | -5/Factory | Entered Upper Caves 24057 | -5/Upper Caves | Identified exit to Upper Caves 24058 | -5/Upper Caves | UFD Scientist delivered a prototype 24112 | -5/Upper Caves | Found Prototype Protection 24112 | -5/Upper Caves | Identified Enh. Scrap Shield 24328 | -5/Upper Caves | Build established: Mutant 24421 | -5/Upper Caves | Entered another Upper Caves area 24505 | -5/Upper Caves | Prototype Device suddenly appears! 24507 | -5/Upper Caves | Found Prototype Device 24510 | -5/Upper Caves | Identified Amulet of Y3-NDR 24522 | -5/Upper Caves | Joined by bewildered Wizard 24522 | -5/Upper Caves | Joined by bewildered Wizard 24546 | -5/Upper Caves | Discovered new exit (range 14) 24556 | -5/Upper Caves | Joined by bewildered Wizard 24557 | -5/Upper Caves | Spotted B-75 Beast 24558 | -5/Upper Caves | Joined by bewildered Wizard 24596 | -5/Upper Caves | Joined by bewildered Wizard 24597 | -5/Upper Caves | Joined by bewildered Wizard 24611 | -5/Upper Caves | Entered Warlord 24611 | -5/Warlord | Accompanied by 4 allies 24758 | -5/Warlord | Received a Watcher feed algorithm from an ecstatic Tinkerer 24867 | -5/Warlord | Found Prototype Hackware 24927 | -5/Warlord | Warlord's base attacked by MAIN.C 24981 | -5/Warlord | Found Prototype Energy Cannon 24981 | -5/Warlord | Identified Vortex Driver 25017 | -5/Warlord | Rebuked by Warlord 25023 | -5/Warlord | Build established: Commander-Mutant 25063 | -5/Warlord | Found Vortex Driver 25277 | -5/Warlord | Warlord forces counterattacked 25278 | -5/Warlord | Lost 6 allies 25316 | -5/Warlord | Spotted Striker 25360 | -5/Warlord | Lost 6 allies 25376 | -5/Warlord | P-80 Master assimilated allied SD-0FO(g) 25387 | -5/Warlord | P-80 Master assimilated allied ML-W4I(b) 25441 | -5/Warlord | Spotted Striker 25477 | -5/Warlord | Lost 14 allies 25517 | -5/Warlord | Spotted Executioner 25527 | -5/Warlord | Spotted Striker 25546 | -5/Warlord | Build established: Scavenger-Mutant 25559 | -5/Warlord | Lost 5 allies 25602 | -5/Warlord | Warlord base infiltrated, sounded retreat 25765 | -5/Warlord | Spotted Executioner 25788 | -5/Warlord | Spotted Striker 25799 | -5/Warlord | Spotted B-86 Titan 25805 | -5/Warlord | Spotted B-75 Beast 25840 | -5/Warlord | Spotted Executioner 25890 | -5/Warlord | Found Prototype Processor 25890 | -5/Warlord | Identified Exp. Core Analyzer 25948 | -5/Warlord | Discovered new exit (range 14) 25953 | -5/Warlord | Entered Proximity Caves 25955 | -4/Proximity Caves | Attracted the attention of an 0b10 checkpoint 25980 | -4/Proximity Caves | Lost 24 allies 26122 | -4/Proximity Caves | Received a Behemoth hack from an annoying Tinkerer 26271 | -4/Proximity Caves | Joined by bewildered Wizard 26272 | -4/Proximity Caves | Joined by bewildered Wizard 26276 | -4/Proximity Caves | Joined by bewildered Wizard 26345 | -4/Proximity Caves | Joined by bewildered Wizard 26359 | -4/Proximity Caves | Learned location of Quarantine (-3) 26497 | -4/Proximity Caves | Attracted the attention of an 0b10 base 26538 | -4/Proximity Caves | Entered Factory 26538 | -4/Factory | Accompanied by 3 allies 26538 | -4/Factory | Evolved 2 slots: Propulsion x1, Utility x1 26597 | -4/Factory | Identified Ghost Barrier 26632 | -4/Factory | Joined by bewildered Wizard 26632 | -4/Factory | Discovered new exit (range 4) 26678 | -4/Factory | Joined by bewildered Wizard 26679 | -4/Factory | Joined by bewildered Wizard 26697 | -4/Factory | Joined by bewildered Wizard 26764 | -4/Factory | Joined by bewildered Wizard 26805 | -4/Factory | Lost 4 allies 26852 | -4/Factory | Lost 3 parts (2p1u) 26900 | -4/Factory | Destroyed 8 combat bots 27038 | -4/Factory | First assault squad dispatched 27038 | -4/Factory | Discovered new exit (range 16) 27042 | -4/Factory | Identified exit to Armory 27042 | -4/Factory | Entered Armory 27197 | -4/Armory | Lost 5 allies 27250 | -4/Armory | Found Fusion Bomb Launcher 27466 | -4/Armory | System corruption reached 10% 27537 | -4/Armory | Released all parts (12) 27542 | -4/Armory | Search patrols dispatched 27544 | -4/Armory | Core integrity fell below 50% 27551 | -4/Armory | Core integrity fell below 20% 27553 | -4/Armory | System corruption reached 30% 27554 | -4/Armory | Destroyed by P-70 Sage with Tesla Rifle Last Messages --------------- 27545_ S-27 Virus destroyed. 27546_ Slammed into Wall. 27546_ Destabilizing: Core damaged (-23). 27547_ Slammed into Wall. 27547_ Destabilizing: System corrupted (+1). 27548_ Slammed into Wall. 27548_ Destabilizing: System corrupted (+1). 27549_ Slammed into Wall. 27549_ Destabilizing: Core damaged (-11). 27549_ Destabilizing: System corrupted (+2). 27550_ Slammed into Wall. 27550_ Destabilizing: Core damaged (-34). 27551_ Slammed into Wall. 27551_ Destabilizing: System corrupted (+2). 27551_ Door malfunctions. 27552_ Slammed into Wall. 27552_ Destabilizing: System corrupted (+2). 27553_ Slammed into Wall. 27553_ Destabilizing: Core damaged (-11). 27554_ Slammed into Wall. Map ----- +----------------------------------------------------+ | ?????????????????????????????????????????????????? | | ?????????????????????????????????????????????????? | | ?????????????????????????????????????????????????? | | ?????????????????????????????????????????????????? | | ?????????????????????????????????????????????????? | | ????????????????????????????? # # ###### | | ????????????????????????????? #+######### #????? | | ????????????????????????????? + #????? | | ????????????????????????????? # #????? | | ????????????????????????????? ###########+####### | | ????????????????????????????? #????# # | | ????????????????????????????? #????# # | | ????????????????????????????? #????# " + | | ?????????????????????????????###????# "" + | | ????????????????????????????????????# "" # | | ????????????????????????????????????# "" + | | ????????????????????????????????????# "" # | | ????????????????????????????????????# "" # | | ????????????????????????????????????# "" # | | ????????????????????????????????????# " # | | ????????????????????????????????????# # | | ????????????????????????????????????# # | | ????????????????????????????????????#######+###### | | ??????????????????????????????????????????# #????? | | ?????????????##+###########???????????????# #????? | | ?????????????# *%=@#???????????????# #????? | | ?????????????# =[=ss############????# ###### | | ?????????????# """" """"!=//!]/ #????# | | ????????????????""" """"]!########## #?#### | | ?????????????????"" """"]!#????????# #?# | | ????????????????????""""sp#????????# #?# | | ???????????????????? #????????# #?# ######+ | | ??????????????????? """" #???????## #### ##?????? | | ??????????????????" """" #???????# ### #??????? | | ????????????????????"""" !#???????# ! #??????? | | ??????????????????????"" ????????# #####??????? | | ??????????????????????? ????????#####??????????? | | ???????????????????????###???????????????????????? | | ?????????????????????????????????????????????????? | | ?????????????????????????????????????????????????? | | ?????????????????????????????????????????????????? | | ?????????????????????????????????????????????????? | | ?????????????????????????????????????????????????? | | ?????????????????????????????????????????????????? | | ?????????????????????????????????????????????????? | | ?????????????????????????????????????????????????? | | ?????????????????????????????????????????????????? | | ?????????????????????????????????????????????????? | | ?????????????????????????????????????????????????? | | ?????????????????????????????????????????????????? | +----------------------------------------------------+ Best States ------------- Heat Dissipation 74 Energy Generation 34 Energy Capacity 410 Matter Stores 300 Matter Capacity 300 Sight Range 22 Robot Scan Range 16 Terrain Scan Range 20 Terrain Scan Density 1210 Armor Coverage 1025 Propulsion Shielding 90 Evasion (%) 58 Melee Accuracy 8 Core Analysis 8 Recoil Reduction 2 Offensive Hacking 10 Defensive Hacking 20 Authchip Count 10 Item Schematics ----------------- Hcp. Storage Unit | -7/Recycling | Hacked Hacking Suite | -7/Recycling | Hacked Hvy. Treads | -7/Recycling | Hacked Cmb. Gravmag System | -5/Factory | Hacked Robot Schematics ------------------ None Fabricated ------------ Nothing Repaired ---------- Nothing Alien Tech Used ----------------- None Achievements -------------- None Challenges ------------ None Game ------ Seed IonModifiedTube Manual? 0 Play Time 03:21:35 Cumulative 560.2 hours Start 2025.07.25 @ 17:05:40 End 2025.08.03 @ 21:01:35 Sessions 11 Manual Loads 0 Difficulty Rogue Special Mode None Game No. 241 Rogue 241 Adventurer 0 Explorer 0 Win Type - Total 27 Types 9/4/7/2/1/0/1/1/1/1 Lore% 91 Gallery% 87 Achievement% 81 Wizard Run 0 Options --------- Layout 0 ASCII 0 Keyboard 0 Movement Arrows Keybinds 0 Fullscreen 2 Font 18/SmallcapsGlow Map View 76x50 Zoom Use 0% Tactical HUD 1 Map Filters NONE Filters NONE Steam 1 RUN: 75421bd2-ed9e-415d-a537-bb129747ab19